[Event "Early-Titled-Tuesday-Blitz-April-02-2024"]
[Site "Chess.com"]
[Date "2024.04.02"]
[Round "6"]
[White "MatthewG-p4p"]
[Black "NovakRatko"]
[Result "1-0"]
[WhiteElo "2859"]
[BlackElo "2446"]
[TimeControl "180+1"]
[EndTime "9:06:57 PDT"]
[Termination "MatthewG-p4p won by resignation"]

1. f4 {[%clk 0:03:00.9]} 1... d5 {[%clk 0:02:58.4]} 2. Nf3 {[%clk 0:02:56.5]}
2... c5 {[%clk 0:02:57.2]} 3. g3 {[%clk 0:02:56.9]} 3... Nc6 {[%clk 0:02:56.5]}
4. Bg2 {[%clk 0:02:57.4]} 4... f6 {[%clk 0:02:56.6]} 5. d3 {[%clk 0:02:57.3]}
5... e5 {[%clk 0:02:56.8]} 6. Nc3 {[%clk 0:02:56.2]} 6... Be6 {[%clk 0:02:53.9]}
7. O-O {[%clk 0:02:55.7]} 7... Bd6 {[%clk 0:02:54.1]} 8. e4 {[%clk 0:02:55.4]}
8... d4 {[%clk 0:02:51.6]} 9. Ne2 {[%clk 0:02:53.8]} 9... Nge7 {[%clk
0:02:48.7]} 10. c3 {[%clk 0:02:48.8]} 10... dxc3 {[%clk 0:02:48.1]} 11. bxc3
{[%clk 0:02:49.7]} 11... O-O {[%clk 0:02:35.6]} 12. Be3 {[%clk 0:02:39]} 12...
Qa5 {[%clk 0:02:23.7]} 13. f5 {[%clk 0:02:22.8]} 13... Bf7 {[%clk 0:02:23]} 14.
g4 {[%clk 0:02:23.5]} 14... Rad8 {[%clk 0:02:21.9]} 15. g5 {[%clk 0:02:17.8]}
15... Bc7 {[%clk 0:02:09.9]} 16. gxf6 {[%clk 0:02:01.9]} 16... gxf6 {[%clk
0:02:09.6]} 17. Bh6 {[%clk 0:02:02.6]} 17... Rfe8 {[%clk 0:02:04.8]} 18. Qe1
{[%clk 0:02:02.8]} 18... Kh8 {[%clk 0:02:04.8]} 19. Qg3 {[%clk 0:01:21.6]} 19...
Rg8 {[%clk 0:02:03]} 20. Qh4 {[%clk 0:01:22.3]} 20... Rd6 {[%clk 0:02:03.3]} 21.
d4 {[%clk 0:01:11]} 21... cxd4 {[%clk 0:01:54.2]} 22. cxd4 {[%clk 0:01:09.3]}
22... Bc4 {[%clk 0:01:54.3]} 23. Rf2 {[%clk 0:00:22.2]} 23... Bb6 {[%clk
0:01:39.8]} 24. Be3 {[%clk 0:00:05.2]} 24... Bxe2 {[%clk 0:01:26.2]} 25. Rxe2
{[%clk 0:00:06.1]} 25... exd4 {[%clk 0:01:26.7]} 26. Bf2 {[%clk 0:00:06.6]}
26... d3 {[%clk 0:01:26.4]} 27. Rd2 {[%clk 0:00:04.8]} 27... Ne5 {[%clk
0:01:06.3]} 28. Nxe5 {[%clk 0:00:03.6]} 28... Rxg2+ {[%clk 0:00:41.7]} 29. Kxg2
{[%clk 0:00:02.8]} 29... Qxd2 {[%clk 0:00:42.2]} 30. Ng4 {[%clk 0:00:02.2]}
30... Qg5 {[%clk 0:00:16.3]} 31. Qxg5 {[%clk 0:00:02.3]} 31... fxg5 {[%clk
0:00:15.7]} 32. Bg3 {[%clk 0:00:03]} 32... Rd4 {[%clk 0:00:13]} 33. Rd1 {[%clk
0:00:03.9]} 33... Rxe4 {[%clk 0:00:12.4]} 34. Be5+ {[%clk 0:00:04.7]} 34... Kg8
{[%clk 0:00:08.7]} 35. Nf6+ {[%clk 0:00:05]} 35... Kf7 {[%clk 0:00:07.5]} 36.
Nxe4 {[%clk 0:00:05.9]} 36... Nxf5 {[%clk 0:00:07.5]} 37. Rxd3 {[%clk
0:00:06.7]} 37... Ke6 {[%clk 0:00:07.8]} 38. Bb2 {[%clk 0:00:06.7]} 38... h5
{[%clk 0:00:08]} 39. Nxg5+ {[%clk 0:00:07]} 1-0

[Event "Early-Titled-Tuesday-Blitz-April-02-2024"]
[Site "Chess.com"]
[Date "2024.04.02"]
[Round "6"]
[White "Der_Balak_3Halak"]
[Black "tactic"]
[Result "1-0"]
[WhiteElo "2429"]
[BlackElo "2600"]
[TimeControl "180+1"]
[EndTime "9:07:00 PDT"]
[Termination "Der_Balak_3Halak won by checkmate"]

1. e4 {[%clk 0:03:00.9]} 1... c5 {[%clk 0:02:59.2]} 2. Nf3 {[%clk 0:03:00.3]}
2... Nc6 {[%clk 0:02:59.5]} 3. Bb5 {[%clk 0:03:00.7]} 3... g6 {[%clk 0:02:59.7]}
4. O-O {[%clk 0:02:59.9]} 4... Bg7 {[%clk 0:03:00.1]} 5. c3 {[%clk 0:03:00.5]}
5... Nf6 {[%clk 0:03:00.5]} 6. Re1 {[%clk 0:02:59.7]} 6... O-O {[%clk
0:03:00.4]} 7. d4 {[%clk 0:03:00.3]} 7... d5 {[%clk 0:03:00]} 8. exd5 {[%clk
0:02:59.4]} 8... Nxd5 {[%clk 0:02:49.4]} 9. dxc5 {[%clk 0:02:58.2]} 9... Bg4
{[%clk 0:02:47.2]} 10. h3 {[%clk 0:02:56.2]} 10... Bxf3 {[%clk 0:02:44]} 11.
Qxf3 {[%clk 0:02:57.1]} 11... e6 {[%clk 0:02:25.3]} 12. Bxc6 {[%clk 0:02:47.2]}
12... bxc6 {[%clk 0:02:26.2]} 13. Nd2 {[%clk 0:02:47.4]} 13... Qe7 {[%clk
0:02:21.1]} 14. Ne4 {[%clk 0:02:44.3]} 14... e5 {[%clk 0:02:13.9]} 15. c4 {[%clk
0:02:31.8]} 15... Nb4 {[%clk 0:02:09.7]} 16. Qc3 {[%clk 0:02:24.2]} 16... a5
{[%clk 0:02:08.2]} 17. a3 {[%clk 0:02:17.6]} 17... Na6 {[%clk 0:02:08.6]} 18.
Qxa5 {[%clk 0:02:17.6]} 18... f5 {[%clk 0:02:06.6]} 19. Nd6 {[%clk 0:02:17.4]}
19... e4 {[%clk 0:01:59.4]} 20. Rb1 {[%clk 0:02:06.7]} 20... Bd4 {[%clk
0:01:49.4]} 21. Be3 {[%clk 0:01:41.3]} 21... Nxc5 {[%clk 0:01:41]} 22. Qd2
{[%clk 0:01:36.2]} 22... Nb3 {[%clk 0:01:24.5]} 23. Qc2 {[%clk 0:01:29.1]} 23...
Rfb8 {[%clk 0:01:20.7]} 24. c5 {[%clk 0:01:17.2]} 24... Kg7 {[%clk 0:01:04.8]}
25. Rbd1 {[%clk 0:01:10.1]} 25... Be5 {[%clk 0:00:56.5]} 26. Qc4 {[%clk
0:01:01.1]} 26... Na5 {[%clk 0:00:52.6]} 27. Qc1 {[%clk 0:00:52.8]} 27... Rxb2
{[%clk 0:00:46.6]} 28. Bd4 {[%clk 0:00:42.8]} 28... Bxd4 {[%clk 0:00:37.1]} 29.
Rxd4 {[%clk 0:00:43.7]} 29... Rab8 {[%clk 0:00:37.4]} 30. Red1 {[%clk
0:00:43.7]} 30... Nb3 {[%clk 0:00:36.6]} 31. Qxb2 {[%clk 0:00:39.4]} 31... Nxd4
{[%clk 0:00:27.6]} 32. Qxb8 {[%clk 0:00:37.6]} 32... Nf3+ {[%clk 0:00:17.8]} 33.
gxf3 {[%clk 0:00:31]} 33... Qg5+ {[%clk 0:00:18]} 34. Kf1 {[%clk 0:00:30.6]}
34... Qh4 {[%clk 0:00:11.4]} 35. Qc7+ {[%clk 0:00:29.8]} 35... Kh6 {[%clk
0:00:11.9]} 36. Nf7+ {[%clk 0:00:25.6]} 36... Kh5 {[%clk 0:00:11.7]} 37. Qg3
{[%clk 0:00:25]} 37... Qf6 {[%clk 0:00:12.2]} 38. Ne5 {[%clk 0:00:23.5]} 38...
f4 {[%clk 0:00:11.2]} 39. Qg4+ {[%clk 0:00:23.1]} 39... Kh6 {[%clk 0:00:12]} 40.
Rd7 {[%clk 0:00:19.2]} 40... g5 {[%clk 0:00:09.9]} 41. fxe4 {[%clk 0:00:15]}
41... Qxe5 {[%clk 0:00:09.5]} 42. Rd6+ {[%clk 0:00:15.4]} 42... Kg7 {[%clk
0:00:09.5]} 43. Qd7+ {[%clk 0:00:16]} 43... Kf8 {[%clk 0:00:08.8]} 44. Qf5+
{[%clk 0:00:15.7]} 44... Qxf5 {[%clk 0:00:08.7]} 45. exf5 {[%clk 0:00:16.6]}
45... h5 {[%clk 0:00:09.3]} 46. f6 {[%clk 0:00:17]} 46... Kf7 {[%clk 0:00:09.8]}
47. f3 {[%clk 0:00:16.9]} 47... Kg6 {[%clk 0:00:09.9]} 48. Ke2 {[%clk
0:00:17.1]} 48... g4 {[%clk 0:00:09.8]} 49. fxg4 {[%clk 0:00:16.6]} 49... hxg4
{[%clk 0:00:09.8]} 50. hxg4 {[%clk 0:00:17.5]} 50... Kg5 {[%clk 0:00:10]} 51. f7
{[%clk 0:00:17.5]} 51... f3+ {[%clk 0:00:10.4]} 52. Kxf3 {[%clk 0:00:17]} 52...
Kh4 {[%clk 0:00:11.3]} 53. f8=Q {[%clk 0:00:16.8]} 53... Kg5 {[%clk 0:00:11.5]}
54. Qh6# {[%clk 0:00:17.4]} 1-0

[Event "Early-Titled-Tuesday-Blitz-April-02-2024"]
[Site "Chess.com"]
[Date "2024.04.02"]
[Round "6"]
[White "Dixit_Nikhil"]
[Black "Gabrielian_Artur"]
[Result "1/2-1/2"]
[WhiteElo "2644"]
[BlackElo "2802"]
[TimeControl "180+1"]
[EndTime "9:07:05 PDT"]
[Termination "Game drawn by repetition"]

1. e4 {[%clk 0:03:00.9]} 1... e5 {[%clk 0:02:58.4]} 2. Nf3 {[%clk 0:03:01.2]}
2... Nc6 {[%clk 0:02:58.6]} 3. Nc3 {[%clk 0:03:01.9]} 3... Nf6 {[%clk
0:02:57.8]} 4. d4 {[%clk 0:03:02.2]} 4... exd4 {[%clk 0:02:57]} 5. Nxd4 {[%clk
0:03:03.1]} 5... Bb4 {[%clk 0:02:56.8]} 6. Nxc6 {[%clk 0:03:03.3]} 6... bxc6
{[%clk 0:02:57.1]} 7. Bd3 {[%clk 0:03:04]} 7... d5 {[%clk 0:02:57.2]} 8. exd5
{[%clk 0:03:04.9]} 8... O-O {[%clk 0:02:57.2]} 9. O-O {[%clk 0:03:05.1]} 9...
Bg4 {[%clk 0:02:57.3]} 10. f3 {[%clk 0:03:05.6]} 10... Bh5 {[%clk 0:02:53.3]}
11. Bg5 {[%clk 0:03:06.2]} 11... Bxc3 {[%clk 0:02:49.3]} 12. bxc3 {[%clk
0:03:05.7]} 12... cxd5 {[%clk 0:02:49.8]} 13. Qd2 {[%clk 0:02:56.6]} 13... Bg6
{[%clk 0:02:46.1]} 14. Qf4 {[%clk 0:02:53.3]} 14... c6 {[%clk 0:02:42.8]} 15.
Bxf6 {[%clk 0:02:52.8]} 15... Qxf6 {[%clk 0:02:41.6]} 16. Qxf6 {[%clk 0:02:53]}
16... gxf6 {[%clk 0:02:42.1]} 17. Rab1 {[%clk 0:02:53.7]} 17... Rab8 {[%clk
0:02:41.9]} 18. Rb3 {[%clk 0:02:53.8]} 18... Rb6 {[%clk 0:02:39.8]} 19. Ra3
{[%clk 0:02:46.8]} 19... Re8 {[%clk 0:02:33.3]} 20. Rxa7 {[%clk 0:02:16.1]}
20... Bxd3 {[%clk 0:02:31.1]} 21. cxd3 {[%clk 0:02:17]} 21... Rb2 {[%clk
0:02:31]} 22. Kh1 {[%clk 0:02:14.1]} 22... Ree2 {[%clk 0:02:30.1]} 23. Rg1
{[%clk 0:02:14.5]} 23... Rec2 {[%clk 0:02:21.2]} 24. Ra3 {[%clk 0:02:12]} 24...
h5 {[%clk 0:02:15.8]} 25. h4 {[%clk 0:02:07.3]} 25... Kg7 {[%clk 0:02:14.5]} 26.
Kh2 {[%clk 0:02:07.6]} 26... c5 {[%clk 0:01:58.7]} 27. Kg3 {[%clk 0:02:06.3]}
27... Rxa2 {[%clk 0:01:57.9]} 28. Rxa2 {[%clk 0:02:06.5]} 28... Rxa2 {[%clk
0:01:58]} 29. Rb1 {[%clk 0:02:02.7]} 29... Rc2 {[%clk 0:01:48.2]} 30. Rb3 {[%clk
0:02:01.2]} 30... Kg6 {[%clk 0:01:47]} 31. d4 {[%clk 0:01:54.9]} 31... cxd4
{[%clk 0:01:25.5]} 32. cxd4 {[%clk 0:01:55.8]} 32... Rd2 {[%clk 0:01:25.7]} 33.
Rb4 {[%clk 0:01:54.2]} 33... Kf5 {[%clk 0:01:19.3]} 34. Ra4 {[%clk 0:01:54.3]}
34... Kg6 {[%clk 0:01:17.7]} 35. Rb4 {[%clk 0:01:53.7]} 35... f5 {[%clk
0:01:17.1]} 36. Kf4 {[%clk 0:01:47]} 36... Rxg2 {[%clk 0:01:10.7]} 37. Rb6+
{[%clk 0:01:46.4]} 37... f6 {[%clk 0:01:10.7]} 38. Rd6 {[%clk 0:01:46.9]} 38...
Rh2 {[%clk 0:01:03.5]} 39. Kg3 {[%clk 0:01:46.8]} 39... Rd2 {[%clk 0:01:00.6]}
40. Rxd5 {[%clk 0:01:47]} 40... Rd1 {[%clk 0:00:58.8]} 41. Rd7 {[%clk
0:01:45.1]} 41... Rg1+ {[%clk 0:00:56.3]} 42. Kh2 {[%clk 0:01:45.1]} 42... Rd1
{[%clk 0:00:53.7]} 43. d5 {[%clk 0:01:45]} 43... f4 {[%clk 0:00:53.7]} 44. d6
{[%clk 0:01:37.2]} 44... Rd2+ {[%clk 0:00:53.5]} 45. Kg1 {[%clk 0:01:32.8]}
45... Kf5 {[%clk 0:00:51.5]} 46. Rh7 {[%clk 0:01:26.9]} 46... Kg6 {[%clk
0:00:50.4]} 47. Rd7 {[%clk 0:01:26.9]} 47... Kf5 {[%clk 0:00:48.6]} 48. Rd8
{[%clk 0:01:18.4]} 48... Ke6 {[%clk 0:00:47.2]} 49. Re8+ {[%clk 0:01:11.1]}
49... Kd7 {[%clk 0:00:43.8]} 50. Re4 {[%clk 0:01:05.2]} 50... Kxd6 {[%clk
0:00:38]} 51. Rxf4 {[%clk 0:01:05.7]} 51... Ke5 {[%clk 0:00:35.7]} 52. Re4+
{[%clk 0:01:05.4]} 52... Kf5 {[%clk 0:00:34.1]} 53. Ra4 {[%clk 0:01:03.3]} 53...
Re2 {[%clk 0:00:30.3]} 54. Kf1 {[%clk 0:01:00.7]} 54... Rb2 {[%clk 0:00:28.4]}
55. Kg1 {[%clk 0:01:00.4]} 55... Ke5 {[%clk 0:00:26.8]} 56. Re4+ {[%clk
0:00:59.7]} 56... Kf5 {[%clk 0:00:24.7]} 57. Ra4 {[%clk 0:00:59.5]} 57... Rc2
{[%clk 0:00:23.4]} 58. Kf1 {[%clk 0:00:58.3]} 58... Kg6 {[%clk 0:00:22.9]} 59.
Kg1 {[%clk 0:00:57.3]} 59... Rb2 {[%clk 0:00:18.4]} 60. Kf1 {[%clk 0:00:57]}
60... Rh2 {[%clk 0:00:17.8]} 61. Kg1 {[%clk 0:00:57.1]} 61... Re2 {[%clk
0:00:18.4]} 62. Kf1 {[%clk 0:00:57.4]} 62... Rd2 {[%clk 0:00:18.6]} 63. Kg1
{[%clk 0:00:55.1]} 63... Kf5 {[%clk 0:00:18.8]} 64. Kf1 {[%clk 0:00:55.1]} 64...
Ke5 {[%clk 0:00:18]} 65. Re4+ {[%clk 0:00:54.9]} 65... Kf5 {[%clk 0:00:16.2]}
66. Ra4 {[%clk 0:00:55.1]} 66... Rb2 {[%clk 0:00:15.6]} 67. Kg1 {[%clk
0:00:55.1]} 1/2-1/2

[Event "Early-Titled-Tuesday-Blitz-April-02-2024"]
[Site "Chess.com"]
[Date "2024.04.02"]
[Round "6"]
[White "IsmaelAmadorGarcia"]
[Black "ATM622"]
[Result "0-1"]
[WhiteElo "2322"]
[BlackElo "2509"]
[TimeControl "180+1"]
[EndTime "9:07:05 PDT"]
[Termination "ATM622 won by resignation"]

1. e4 {[%clk 0:03:00.9]} 1... c6 {[%clk 0:02:53.8]} 2. d4 {[%clk 0:02:59.3]}
2... d5 {[%clk 0:02:54]} 3. exd5 {[%clk 0:02:58.9]} 3... cxd5 {[%clk 0:02:51.7]}
4. Bd3 {[%clk 0:02:58.8]} 4... Nc6 {[%clk 0:02:48.2]} 5. c3 {[%clk 0:02:58.9]}
5... Nf6 {[%clk 0:02:48.4]} 6. Bf4 {[%clk 0:02:58.8]} 6... g6 {[%clk 0:02:45.7]}
7. Nd2 {[%clk 0:02:55.2]} 7... Bg7 {[%clk 0:02:42.7]} 8. Ngf3 {[%clk 0:02:53.1]}
8... O-O {[%clk 0:02:41.9]} 9. O-O {[%clk 0:02:53.1]} 9... Bf5 {[%clk 0:02:37]}
10. Ne1 {[%clk 0:02:33.9]} 10... Qd7 {[%clk 0:02:28.5]} 11. Ndf3 {[%clk
0:02:32.7]} 11... Bxd3 {[%clk 0:02:21.5]} 12. Nxd3 {[%clk 0:02:32.3]} 12... Ne4
{[%clk 0:02:18.7]} 13. h3 {[%clk 0:02:29.1]} 13... Rac8 {[%clk 0:02:11.9]} 14.
Re1 {[%clk 0:02:27.8]} 14... Na5 {[%clk 0:02:06.3]} 15. Nfe5 {[%clk 0:02:23.4]}
15... Qe8 {[%clk 0:01:54.6]} 16. f3 {[%clk 0:02:08.8]} 16... Nf6 {[%clk
0:01:50.7]} 17. h4 {[%clk 0:02:07.5]} 17... Nc4 {[%clk 0:01:48.3]} 18. Nxc4
{[%clk 0:02:01.7]} 18... dxc4 {[%clk 0:01:48.2]} 19. Ne5 {[%clk 0:02:01.1]}
19... Nd5 {[%clk 0:01:43]} 20. Bd2 {[%clk 0:01:55.1]} 20... b5 {[%clk
0:01:42.2]} 21. a3 {[%clk 0:01:54]} 21... a5 {[%clk 0:01:34.2]} 22. Qe2 {[%clk
0:01:54.1]} 22... e6 {[%clk 0:01:28.3]} 23. h5 {[%clk 0:01:53.6]} 23... Qd8
{[%clk 0:01:24.9]} 24. h6 {[%clk 0:01:49.3]} 24... Bh8 {[%clk 0:01:23.8]} 25.
Qf2 {[%clk 0:01:41.2]} 25... Bf6 {[%clk 0:01:17.5]} 26. Ng4 {[%clk 0:01:34.8]}
26... Bh8 {[%clk 0:01:16.7]} 27. Qg3 {[%clk 0:01:30.6]} 27... Qc7 {[%clk
0:01:09]} 28. Qh4 {[%clk 0:01:28.1]} 28... Qd8 {[%clk 0:01:00.2]} 29. Bg5 {[%clk
0:01:27.7]} 29... f6 {[%clk 0:00:59.7]} 30. Bd2 {[%clk 0:01:21.5]} 30... Rc6
{[%clk 0:00:55.4]} 31. Qg3 {[%clk 0:01:19.5]} 31... Qd6 {[%clk 0:00:46.3]} 32.
Qh4 {[%clk 0:01:16.6]} 32... Nf4 {[%clk 0:00:30]} 33. Nf2 {[%clk 0:01:11]} 33...
Nd5 {[%clk 0:00:21.4]} 34. Re2 {[%clk 0:01:08.5]} 34... f5 {[%clk 0:00:17.5]}
35. Rae1 {[%clk 0:01:08]} 35... Bf6 {[%clk 0:00:17.4]} 36. Bg5 {[%clk
0:01:01.3]} 36... Qe7 {[%clk 0:00:17.5]} 37. Bxf6 {[%clk 0:00:55.8]} 37... Qxf6
{[%clk 0:00:17.5]} 38. Qh2 {[%clk 0:00:54.5]} 38... b4 {[%clk 0:00:14.2]} 39.
cxb4 {[%clk 0:00:32.4]} 39... axb4 {[%clk 0:00:15.1]} 40. a4 {[%clk 0:00:32.8]}
40... c3 {[%clk 0:00:14.1]} 41. bxc3 {[%clk 0:00:32.7]} 41... bxc3 {[%clk
0:00:14.3]} 42. Nd3 {[%clk 0:00:30.5]} 42... Qxd4+ {[%clk 0:00:14.1]} 43. Nf2
{[%clk 0:00:30.9]} 43... Nf4 {[%clk 0:00:12.9]} 44. Re3 {[%clk 0:00:27.7]} 44...
c2 {[%clk 0:00:11.1]} 45. Qh4 {[%clk 0:00:04.3]} 45... Ne2+ {[%clk 0:00:07.9]}
46. R1xe2 {[%clk 0:00:04.2]} 46... Qxh4 {[%clk 0:00:08]} 0-1

[Event "Early-Titled-Tuesday-Blitz-April-02-2024"]
[Site "Chess.com"]
[Date "2024.04.02"]
[Round "6"]
[White "Anton_Demchenko"]
[Black "Saxar85"]
[Result "1-0"]
[WhiteElo "2974"]
[BlackElo "2740"]
[TimeControl "180+1"]
[EndTime "9:07:10 PDT"]
[Termination "Anton_Demchenko won on time"]

1. e4 {[%clk 0:02:52.6]} 1... e5 {[%clk 0:02:59.5]} 2. Nf3 {[%clk 0:02:52.2]}
2... Nc6 {[%clk 0:02:59.2]} 3. Bc4 {[%clk 0:02:52.7]} 3... Bc5 {[%clk
0:02:58.4]} 4. d3 {[%clk 0:02:53.4]} 4... Nf6 {[%clk 0:02:56.8]} 5. Bg5 {[%clk
0:02:52.6]} 5... h6 {[%clk 0:02:55.9]} 6. Bh4 {[%clk 0:02:53.1]} 6... Be7 {[%clk
0:02:54]} 7. Bg3 {[%clk 0:02:53.4]} 7... d6 {[%clk 0:02:53.2]} 8. a4 {[%clk
0:02:54.1]} 8... O-O {[%clk 0:02:51.9]} 9. h3 {[%clk 0:02:53.5]} 9... Be6 {[%clk
0:02:50.7]} 10. Bxe6 {[%clk 0:02:53.3]} 10... fxe6 {[%clk 0:02:50.4]} 11. c3
{[%clk 0:02:54.2]} 11... Qd7 {[%clk 0:02:46.2]} 12. Nbd2 {[%clk 0:02:52]} 12...
a5 {[%clk 0:02:41.2]} 13. O-O {[%clk 0:02:52]} 13... Rf7 {[%clk 0:02:26.9]} 14.
Qb3 {[%clk 0:02:51.9]} 14... b6 {[%clk 0:02:16.7]} 15. Qb5 {[%clk 0:02:51.9]}
15... Raf8 {[%clk 0:02:13.1]} 16. Rac1 {[%clk 0:02:45.7]} 16... Nh5 {[%clk
0:02:07]} 17. Bh2 {[%clk 0:02:43.8]} 17... g5 {[%clk 0:01:42.9]} 18. d4 {[%clk
0:02:42.1]} 18... Rg7 {[%clk 0:01:30.4]} 19. dxe5 {[%clk 0:02:31.8]} 19... Nf4
{[%clk 0:01:18.5]} 20. Bxf4 {[%clk 0:02:17.4]} 20... Rxf4 {[%clk 0:01:18.2]} 21.
Nd4 {[%clk 0:02:06.3]} 21... Nxe5 {[%clk 0:00:30.4]} 22. Qxd7 {[%clk 0:02:06.2]}
22... Nxd7 {[%clk 0:00:30.3]} 23. Nxe6 {[%clk 0:02:06.9]} 23... Nc5 {[%clk
0:00:29.8]} 24. Nxf4 {[%clk 0:01:32.6]} 24... gxf4 {[%clk 0:00:29.4]} 25. Ra1
{[%clk 0:01:29.2]} 25... Bf6 {[%clk 0:00:27.7]} 26. Ra2 {[%clk 0:00:58.4]} 26...
Re7 {[%clk 0:00:23.9]} 27. f3 {[%clk 0:00:59.1]} 27... Nd3 {[%clk 0:00:23.1]}
28. Rd1 {[%clk 0:00:58.2]} 28... Bh4 {[%clk 0:00:18.6]} 29. Nb3 {[%clk
0:00:58.7]} 29... Ne5 {[%clk 0:00:15.6]} 30. Nd4 {[%clk 0:00:59.3]} 30... Kh7
{[%clk 0:00:14]} 31. Kf1 {[%clk 0:00:59.9]} 31... Re8 {[%clk 0:00:11.2]} 32. Nf5
{[%clk 0:00:58.2]} 32... Bf6 {[%clk 0:00:10]} 33. b4 {[%clk 0:00:58.9]} 33...
Ra8 {[%clk 0:00:08.1]} 34. bxa5 {[%clk 0:00:46.8]} 34... Rxa5 {[%clk 0:00:07.6]}
35. Rd5 {[%clk 0:00:47.5]} 35... Ra7 {[%clk 0:00:06.7]} 36. a5 {[%clk
0:00:42.8]} 36... Nc4 {[%clk 0:00:06.2]} 37. a6 {[%clk 0:00:37.6]} 37... Na5
{[%clk 0:00:05.9]} 38. Ra3 {[%clk 0:00:30.3]} 38... Rxa6 {[%clk 0:00:05.8]} 39.
Nd4 {[%clk 0:00:31]} 39... Ra8 {[%clk 0:00:04.3]} 40. Nc6 {[%clk 0:00:29.6]}
40... Ra6 {[%clk 0:00:01.4]} 41. Nxa5 {[%clk 0:00:28.9]} 41... bxa5 {[%clk
0:00:01.6]} 42. Rdxa5 {[%clk 0:00:27.6]} 42... Rc6 {[%clk 0:00:01.9]} 43. Rf5
{[%clk 0:00:14.6]} 43... Bxc3 {[%clk 0:00:01.3]} 44. Rxf4 {[%clk 0:00:15.4]}
44... Be5 {[%clk 0:00:02]} 45. Rg4 {[%clk 0:00:11.5]} 45... Rc2 {[%clk
0:00:01.3]} 46. f4 {[%clk 0:00:09.5]} 46... Bd4 {[%clk 0:00:01.5]} 47. Ke1
{[%clk 0:00:06.3]} 1-0

[Event "Early-Titled-Tuesday-Blitz-April-02-2024"]
[Site "Chess.com"]
[Date "2024.04.02"]
[Round "6"]
[White "Kotofeyca"]
[Black "ChempionBg"]
[Result "1-0"]
[WhiteElo "2500"]
[BlackElo "2297"]
[TimeControl "180+1"]
[EndTime "9:07:11 PDT"]
[Termination "Kotofeyca won on time"]

1. d4 {[%clk 0:03:00.9]} 1... Nf6 {[%clk 0:02:58.7]} 2. c4 {[%clk 0:03:01.4]}
2... g6 {[%clk 0:02:58.8]} 3. f3 {[%clk 0:03:01.5]} 3... Bg7 {[%clk 0:02:58.6]}
4. e4 {[%clk 0:03:01.4]} 4... d6 {[%clk 0:02:59.3]} 5. Nc3 {[%clk 0:03:02.1]}
5... O-O {[%clk 0:02:59.8]} 6. Be3 {[%clk 0:03:02.8]} 6... Nc6 {[%clk 0:03:00]}
7. Nge2 {[%clk 0:03:02.8]} 7... a6 {[%clk 0:02:59.7]} 8. a3 {[%clk 0:03:01.7]}
8... Rb8 {[%clk 0:02:57.4]} 9. b4 {[%clk 0:03:01.4]} 9... e6 {[%clk 0:02:52]}
10. Qd2 {[%clk 0:03:01]} 10... Bd7 {[%clk 0:02:51.4]} 11. Rc1 {[%clk 0:03:00.1]}
11... b5 {[%clk 0:02:39.5]} 12. cxb5 {[%clk 0:02:55.9]} 12... axb5 {[%clk
0:02:39.3]} 13. g3 {[%clk 0:02:34.5]} 13... e5 {[%clk 0:02:25.4]} 14. d5 {[%clk
0:02:32.6]} 14... Ne7 {[%clk 0:02:25.9]} 15. Bg2 {[%clk 0:02:22.9]} 15... Nh5
{[%clk 0:02:24.7]} 16. g4 {[%clk 0:02:17.5]} 16... Nf4 {[%clk 0:02:23.2]} 17.
Nxf4 {[%clk 0:02:17.5]} 17... exf4 {[%clk 0:02:22.5]} 18. Bxf4 {[%clk
0:02:18.4]} 18... f5 {[%clk 0:02:22.6]} 19. exf5 {[%clk 0:02:17]} 19... gxf5
{[%clk 0:02:21.7]} 20. g5 {[%clk 0:02:17.2]} 20... Ng6 {[%clk 0:02:21.3]} 21.
O-O {[%clk 0:02:11]} 21... Nxf4 {[%clk 0:02:09.3]} 22. Qxf4 {[%clk 0:02:10.6]}
22... Be5 {[%clk 0:02:09.1]} 23. Qh4 {[%clk 0:01:56.3]} 23... f4 {[%clk
0:02:08.4]} 24. Ne4 {[%clk 0:01:49.3]} 24... Bf5 {[%clk 0:02:04.1]} 25. Bh3
{[%clk 0:01:41]} 25... Bxe4 {[%clk 0:01:20.5]} 26. fxe4 {[%clk 0:01:40.8]} 26...
Ra8 {[%clk 0:01:21]} 27. Bf5 {[%clk 0:01:35]} 27... Qe7 {[%clk 0:01:20.2]} 28.
Rf3 {[%clk 0:01:30.1]} 28... Bd4+ {[%clk 0:01:10.6]} 29. Kh1 {[%clk 0:01:26.6]}
29... Rxf5 {[%clk 0:01:06.6]} 30. exf5 {[%clk 0:01:20.2]} 30... Qe4 {[%clk
0:01:06]} 31. Qxf4 {[%clk 0:01:14.1]} 31... Qxf4 {[%clk 0:01:05.5]} 32. Rxf4
{[%clk 0:01:15]} 32... Be3 {[%clk 0:01:05.7]} 33. Rff1 {[%clk 0:01:08.4]} 33...
Bxc1 {[%clk 0:01:03.8]} 34. Rxc1 {[%clk 0:01:09.3]} 34... Rxa3 {[%clk
0:00:57.3]} 35. Rxc7 {[%clk 0:01:09]} 35... Rd3 {[%clk 0:00:57.1]} 36. f6 {[%clk
0:00:43.9]} 36... Rxd5 {[%clk 0:00:56.1]} 37. h4 {[%clk 0:00:44.5]} 37... Rd4
{[%clk 0:00:53.7]} 38. Rg7+ {[%clk 0:00:26.8]} 38... Kh8 {[%clk 0:00:39.3]} 39.
h5 {[%clk 0:00:26.9]} 39... Rh4+ {[%clk 0:00:30.9]} 40. Kg2 {[%clk 0:00:26.7]}
40... Rxh5 {[%clk 0:00:31.1]} 41. Kg3 {[%clk 0:00:26.3]} 41... Rh1 {[%clk
0:00:13]} 42. Rb7 {[%clk 0:00:24.8]} 42... Rg1+ {[%clk 0:00:07.6]} 43. Kf4
{[%clk 0:00:24.3]} 43... Rf1+ {[%clk 0:00:06.6]} 44. Kg4 {[%clk 0:00:23.9]}
44... Rg1+ {[%clk 0:00:03.7]} 45. Kf5 {[%clk 0:00:24.1]} 45... Rf1+ {[%clk
0:00:03.9]} 46. Ke6 {[%clk 0:00:24.6]} 46... Re1+ {[%clk 0:00:02.6]} 47. Kxd6
{[%clk 0:00:24.2]} 47... Kg8 {[%clk 0:00:01.3]} 48. Rxb5 {[%clk 0:00:23]} 1-0